fUSD/lending_fUSD_20251126
["ID","MTS","AMOUNT","RATE_DAILY","PERIOD"]
[394932693,1764159037932,-1181.50090963,0.00041938,4]
[394932694,1764159037941,-186.97,0.00041947,30]
[394932695,1764159037950,-150.0,0.00041947,2]
[394932696,1764159037960,-500.0,0.00041947,31]
[394932697,1764159037969,-236.89249227,0.00041947,31]
[394932698,1764159037979,-500.0,0.00041947,31]
[394932699,1764159037989,-500.0,0.00041947,2]
[394932700,1764159037998,-500.0,0.00041947,31]
[394932701,1764159038007,-500.0,0.00041947,31]
[394932702,1764159038016,-500.0,0.00041947,31]
[394932703,1764159038026,-500.0,0.00041947,2]
[394932704,1764159038036,-500.0,0.00041947,31]
[394932705,1764159038046,-500.0,0.00041947,31]
[394932706,1764159038055,-500.0,0.00041947,31]
[394932707,1764159038064,-500.0,0.00041947,31]
[394932708,1764159038074,-500.0,0.00041947,2]
[394932709,1764159038083,-500.0,0.00041947,31]
[394932710,1764159038092,-500.0,0.00041947,31]
[394932711,1764159038101,-500.0,0.00041947,31]
[394932712,1764159038111,-500.0,0.00041947,31]
[394932713,1764159038120,-500.0,0.00041947,31]
[394932714,1764159038130,-500.0,0.00041947,31]
[394932715,1764159038139,-500.0,0.00041947,31]
[394932716,1764159038148,-313.12767427,0.00041947,2]
[394932717,1764159038157,-500.0,0.00041947,31]
[394932718,1764159038166,-500.0,0.00041947,31]
[394932719,1764159038176,-500.0,0.00041947,31]
[394932720,1764159038185,-500.0,0.00041947,31]
[394932721,1764159038194,-500.0,0.00041947,31]
[394932722,1764159038204,-500.0,0.00041947,31]
[394932723,1764159038213,-500.0,0.00041947,31]
[394932724,1764159038222,-500.0,0.00041947,31]
[394932725,1764159038232,-500.0,0.00041947,31]
[394932726,1764159038242,-500.0,0.00041947,31]
[394932728,1764159038251,-500.0,0.00041947,31]
[394932730,1764159038261,-435.70020573,0.00041947,31]
[394932732,1764159038270,-500.0,0.00041947,31]
[394932734,1764159038284,-500.0,0.00041947,31]
[394932736,1764159038293,-500.0,0.00041947,31]
[394932737,1764159038303,-500.0,0.00041947,31]
[394932738,1764159038313,-500.0,0.00041947,31]
[394932739,1764159038323,-500.0,0.00041947,31]
[394932740,1764159038332,-500.0,0.00041947,31]
[394932741,1764159038342,-500.0,0.00041947,31]
[394932742,1764159038352,-500.0,0.00041947,31]
[394932744,1764159038361,-500.0,0.00041947,31]
[394932746,1764159038372,-500.0,0.00041947,31]
[394932747,1764159038381,-500.0,0.00041947,31]
[394932748,1764159038392,-500.0,0.00041947,31]
[394932749,1764159038402,-500.0,0.00041947,31]
[394932750,1764159038413,-500.0,0.00041947,31]
[394932751,1764159038423,-500.0,0.00041947,31]
[394932752,1764159038432,-500.0,0.00041947,31]
[394932754,1764159038443,-500.0,0.00041947,31]
[394932755,1764159038456,-500.0,0.00041947,31]
[394932756,1764159038466,-500.0,0.00041947,31]
[394932757,1764159038475,-500.0,0.00041947,31]
[394932758,1764159038484,-500.0,0.00041947,31]
[394932759,1764159038495,-500.0,0.00041947,31]
[394932760,1764159038505,-500.0,0.00041947,31]
[394932761,1764159038519,-500.0,0.00041947,31]
[394932762,1764159038530,-500.0,0.00041947,31]
[394932763,1764159038540,-500.0,0.00041947,31]
[394932764,1764159038550,-500.0,0.00041947,31]
[394932765,1764159038559,-500.0,0.00041947,31]
[394932766,1764159038569,-500.0,0.00041947,31]
[394932767,1764159038579,-500.0,0.00041947,31]
[394932768,1764159038589,-500.0,0.00041947,31]
[394932769,1764159038599,-500.0,0.00041947,31]
[394932770,1764159038609,-642.17557509,0.00041947,31]
[394932771,1764159038618,-500.0,0.00041947,31]
[394932772,1764159038627,-500.0,0.00041947,31]
[394932773,1764159038637,-500.0,0.00041947,31]
[394932774,1764159038646,-500.0,0.00041947,31]
[394932775,1764159038656,-500.0,0.00041947,31]
[394932776,1764159038666,-500.0,0.00041948,120]
[394932777,1764159038679,-500.0,0.00041948,120]
[394932778,1764159038689,-500.0,0.00041948,120]
[394932779,1764159038699,-500.0,0.00041948,120]
[394932780,1764159038708,-500.0,0.00041948,120]
[394932781,1764159038718,-500.0,0.00041948,120]
[394932782,1764159038728,-500.0,0.00041948,120]
[394932783,1764159038738,-500.0,0.00041948,120]
[394932784,1764159038748,-500.0,0.00041948,120]
[394932785,1764159038757,-500.0,0.00041948,120]
[394932786,1764159038769,-500.0,0.00041948,120]
[394932787,1764159038779,-500.0,0.00041948,120]
[394932788,1764159039000,-500.0,0.00041948,120]
[394932789,1764159039014,-500.0,0.00041948,120]
[394932790,1764159039024,-500.0,0.00041948,120]
[394932791,1764159039034,-500.0,0.00041948,120]
[394932792,1764159039044,-500.0,0.00041948,120]
[394932793,1764159039054,-500.0,0.00041948,120]
[394932794,1764159039063,-500.0,0.00041948,120]
[394932795,1764159039073,-500.0,0.00041948,120]
[394932796,1764159039083,-500.0,0.00041948,120]
[394932797,1764159039093,-500.0,0.00041948,120]
[394932798,1764159039102,-500.0,0.00041948,120]
[394932799,1764159039112,-500.0,0.00041948,120]
[394932800,1764159039122,-500.0,0.00041948,120]
[394932801,1764159039132,-500.0,0.00041948,120]
[394932802,1764159039142,-500.0,0.00041948,120]
[394932803,1764159039152,-500.0,0.00041948,120]
[394932804,1764159039162,-500.0,0.00041948,120]
[394932805,1764159039172,-500.0,0.00041948,120]
[394932806,1764159039182,-500.0,0.00041948,120]
[394932807,1764159039193,-500.0,0.00041948,120]
[394932808,1764159039202,-500.0,0.00041948,120]
[394932809,1764159039212,-500.0,0.00041948,120]
[394932810,1764159039221,-500.0,0.00041948,120]
[394932811,1764159039231,-500.0,0.00041948,120]
[394932812,1764159039241,-500.0,0.00041948,120]
[394932813,1764159039263,-679.0,0.00041948,120]
[394932814,1764159039272,-10287.34803317,0.00041948,2]
[394932815,1764159039286,-1120.43290127,0.00041948,2]
[394932816,1764159039343,-499.98868071,0.00041948,2]
[394932817,1764159039355,-10992.39539457,0.00041948,2]
[394932818,1764159039366,-10507.07940039,0.00041948,2]
[394932819,1764159039377,-5004.93507344,0.00041948,2]
[394932820,1764159039387,-4141.776292,0.00041948,2]
[394932821,1764159039402,-619.3089963,0.00041948,2]
[394932822,1764159039413,-7477.4,0.00041948,2]
[394932831,1764159039970,-263.09305586,0.00041948,2]
[394932832,1764159040133,-668.71639628,0.00041948,2]
[394932833,1764159040190,-10860.27864207,0.00041948,2]
[394932834,1764159040246,-4012.1106964,0.00041948,2]
[394932835,1764159040258,-1450.0,0.00041948,2]
[394932836,1764159040302,-50817.105491,0.00041948,2]
[394932837,1764159040412,-154.71,0.00041074,30]
[394932838,1764159040422,-514896.48681104,0.00041948,2]
[394932839,1764159040445,-2066.3009224,0.00041948,2]
[394932845,1764159043839,-339.01266589,0.0004094,2]
[394932846,1764159043849,-88.95983718,0.00041948,2]
[394932847,1764159043861,-295.38614182,0.00041948,2]
[394932848,1764159043872,-729.36723541,0.00041948,2]
[394932849,1764159044789,-2118.43447377,0.00041948,2]
[394932858,1764159046178,-1693.178389,0.00041948,2]
[394932859,1764159046334,-2492.15,0.00041948,2]
[394932860,1764159046390,-986.89522002,0.00041948,2]
[394932861,1764159046402,-7678.51678236,0.00041948,2]
[394932864,1764159046874,500.0,0.00042052,120]
[394932865,1764159048824,505.25523592,0.00042052,120]
[394932866,1764159050886,500.0,0.00042052,120]
[394932867,1764159052687,446.25069593,0.00042052,120]
[394932868,1764159054367,500.0,0.00042052,120]
[394932869,1764159056192,500.0,0.00042052,120]
[394932870,1764159058003,505.52382375,0.00042052,120]
[394932871,1764159059741,505.32750485,0.00042052,120]
[394932872,1764159061516,500.0,0.00042052,120]
[394932873,1764159061748,506.50317349,0.00042052,120]
[394932874,1764159066079,500.0,0.00042052,120]
[394932875,1764159066379,500.0,0.00042052,120]
[394932876,1764159066881,500.0,0.00042052,120]
[394932877,1764159067005,500.0,0.00042052,120]
[394932878,1764159067499,500.0,0.00042052,120]
[394932879,1764159067624,500.0,0.00042052,120]
[394932880,1764159067905,504.1602966,0.00042052,120]
[394932881,1764159068215,500.0,0.00042052,120]
[394932882,1764159068261,500.0,0.00042052,120]
[394932883,1764159068827,500.0,0.00042052,120]
[394932884,1764159068873,500.0,0.00042052,120]
[394932885,1764159069448,500.0,0.00042052,120]
[394932886,1764159069510,500.0,0.00042052,120]
[394932887,1764159069729,500.0,0.00042052,120]
[394932888,1764159070063,500.0,0.00042052,120]
[394932889,1764159070715,500.0,0.00042052,120]
[394932890,1764159072160,500.0,0.00042052,120]
[394932891,1764159072796,500.0,0.00042052,120]
[394932892,1764159073401,500.0,0.00042052,120]
[394932893,1764159074970,502.71293171,0.00042052,120]
[394932894,1764159076668,500.0,0.00042052,120]
[394932895,1764159085155,500.0,0.00042052,120]
[394932896,1764159088325,510.03688477,0.00042052,120]
[394932897,1764159090063,505.52152147,0.00042052,120]
[394932898,1764159098328,503.42635134,0.00042052,120]
[394932899,1764159112704,156.27,0.00013699,2]
[394932900,1764159118999,530.79043942,0.00042052,120]
[394932901,1764159124046,500.0,0.00042052,120]
[394932902,1764159124308,236.61691036,0.00042052,120]
[394932903,1764159129264,509.95589769,0.00042052,120]
[394932904,1764159135166,542.89179187,0.00042052,120]
[394932905,1764159137025,517.6134509,0.00042052,120]
[394932906,1764159142372,515.08411525,0.00042052,120]
[394932907,1764159145983,506.69119697,0.00042052,120]
[394932908,1764159147895,595.24446528,0.00042052,120]
[394932909,1764159149827,526.12615471,0.00042052,120]
[394932910,1764159154977,500.0,0.00042052,120]
[394932911,1764159155231,339.79729223,0.00042052,120]
[394932912,1764159164599,249.3,0.00042052,120]
[394932913,1764159394329,2506.0,0.00014701,2]
[394932914,1764159558456,400.0,0.00042061,30]
[394932915,1764159559004,400.0,0.00042061,30]
[394932916,1764159559398,400.0,0.00042061,30]
[394932917,1764159559889,400.0,0.00042061,30]
[394932918,1764159560364,400.0,0.00042061,30]
[394932919,1764159560803,400.0,0.00042061,30]
[394932920,1764159561244,400.0,0.00042061,30]
[394932921,1764159561761,400.0,0.00042061,30]
[394932922,1764159562199,400.0,0.00042061,30]
[394932923,1764159562649,333.26733792,0.00042061,30]
[394932924,1764159598496,302.21223511,0.00042061,120]
[394932925,1764159602709,627.65764056,0.00042061,120]
[394932926,1764159604763,503.31050855,0.00042061,120]
[394932927,1764159608679,503.35134775,0.00042061,120]
[394932928,1764159610618,508.05203693,0.00042061,120]
[394932929,1764159614754,517.78572032,0.00042061,120]
[394932930,1764159616684,520.88199478,0.00042061,120]
[394932931,1764159618588,532.15030175,0.00042061,120]
[394932932,1764159622554,500.0,0.00042061,60]
[394932933,1764159622794,343.80477273,0.00042061,60]
[394932934,1764159624707,500.0,0.00042061,120]
[394932935,1764159624955,244.55350541,0.00042061,120]
[394932936,1764159627416,528.38526915,0.00042061,120]
[394932937,1764159632515,500.0,0.00042061,120]
[394932938,1764159632745,163.77813074,0.00042061,120]
[394932939,1764159633392,520.30982164,0.00042061,120]
[394932941,1764159635667,509.27684625,0.00042061,120]
[394932942,1764159636575,289.8255656,0.00042061,120]
[394932943,1764159638274,505.53694703,0.00042061,120]
[394932944,1764159639268,513.64602048,0.00042061,120]
[394932945,1764159641715,511.71731442,0.00042061,120]
[394932946,1764159915548,10000.0,0.00042061,120]
[394932947,1764160062212,506.55447602,0.00042061,120]
[394932948,1764160065529,506.33363451,0.00042061,120]
[394932949,1764160094244,455.15930626,0.00042061,120]
[394932950,1764160096143,502.76800585,0.00042061,120]
[394932951,1764160100996,310.82518345,0.00042061,120]
[394932952,1764160104291,503.24053039,0.00042061,120]
[394932953,1764160109807,536.5376419,0.00042061,120]
[394932954,1764160111396,500.60891466,0.00042061,120]
[394932955,1764160113211,516.43066371,0.00042061,120]
[394932957,1764160119609,504.6476649,0.00042061,120]
[394932958,1764160122038,501.32395421,0.00042061,120]
[394932959,1764160123872,502.92502237,0.00042061,120]
[394932960,1764160127088,507.25989731,0.00042061,120]
[394932961,1764160128783,504.5409044,0.00042061,120]
[394932962,1764160130969,500.61264877,0.00042061,120]
[394932963,1764160132656,500.0,0.00042061,120]
[394932964,1764160147438,508.24994709,0.00042061,120]
[394932965,1764160149250,502.78411559,0.00042061,120]
[394932966,1764160155737,500.0,0.00042061,120]
[394932967,1764160159294,501.04350021,0.00042061,120]
[394932968,1764160161116,500.0,0.00042061,120]
[394932969,1764160164417,502.73621844,0.00042061,120]
[394932970,1764160173897,502.0776445,0.00042061,120]
[394932971,1764160177030,507.01594013,0.00042061,120]
[394932972,1764160180771,502.53467101,0.00042061,120]
[394932973,1764160182272,505.600486,0.00042061,120]
[394932974,1764160184597,505.36861632,0.00042061,120]
[394932975,1764160186417,500.88326839,0.00042061,120]
[394932976,1764160188135,502.69827499,0.00042061,120]
[394932977,1764160189906,504.58894293,0.00042061,120]
[394932978,1764160191833,506.54463025,0.00042061,120]
[394932979,1764160195072,500.0,0.00042061,120]
[394932980,1764160196893,504.16081421,0.00042061,120]
[394932981,1764160198722,506.60700216,0.00042061,120]
[394932982,1764160200901,504.29112052,0.00042061,120]
[394932983,1764160201895,506.0317484,0.00042061,120]
[394932984,1764160206241,500.0,0.00042061,120]
[394932985,1764160208024,503.00180945,0.00042061,120]
[394932986,1764160209849,390.52685025,0.00042061,120]
[394932987,1764160215691,502.91682913,0.00042061,120]
[394932988,1764160217292,508.24894082,0.00042061,120]
[394932989,1764160222493,500.0,0.00042061,120]
[394932990,1764160225848,505.89379066,0.00042061,120]
[394932991,1764160227664,500.0,0.00042061,120]
[394932992,1764160229318,500.0,0.00042061,120]
[394932993,1764160231191,503.07776828,0.00042061,120]
[394933012,1764160231998,-300.0,0.00016879,2]
[394933014,1764160232007,-276.88174643,0.00016879,2]
[394933016,1764160232056,-273.11825357,0.00016879,2]
[394933017,1764160232066,-257.65952448,0.0001688,2]
[394933018,1764160232077,-41044.50214353,0.0001688,2]
[394933019,1764160232114,-25509.9793425,0.0001688,2]
[394933020,1764160232124,-201.45863048,0.00016999,2]
[394933021,1764160232134,-500.0,0.00016999,2]
[394933022,1764160232144,-500.0,0.00016999,2]
[394933023,1764160232154,-326.18891175,0.00016999,2]
[394933024,1764160232163,-500.0,0.00016999,2]
[394933025,1764160232173,-500.0,0.00016999,2]
[394933026,1764160232183,-500.0,0.00016999,2]
[394933027,1764160232192,-264.21755751,0.00016999,2]
[394933028,1764160232202,-58578.28962375,0.00017,2]
[394933029,1764160232213,-1246.01731037,0.00017,2]
[394933030,1764160232224,-250.0,0.00017,2]
[394933031,1764160232236,-396.09815507,0.00017,2]
[394933032,1764160232247,-803.67,0.00017,2]
[394933033,1764160232258,-7326.05993224,0.00017,2]
[394933055,1764160232898,500.0,0.00042061,120]
[394933056,1764160237761,502.70003516,0.00042061,120]
[394933058,1764160238024,-3869.63070379,0.00017,2]
[394933059,1764160238189,-892.52560866,0.00017,2]
[394933060,1764160238247,-49997.04523161,0.00017,2]
[394933061,1764160238257,-246.30453399,0.00017798,2]
[394933062,1764160238267,-371.35757643,0.0001799,2]
[394933063,1764160238277,-371.35757643,0.0001799,2]
[394933064,1764160238287,-371.35757643,0.0001799,2]
[394933065,1764160238296,-515.82474459,0.00017999,2]
[394933066,1764160238306,-34663.5684198,0.00018,2]
[394933067,1764160238318,-735.85953622,0.00018,2]
[394933124,1764160239746,501.11694887,0.00042061,120]
[394933130,1764160240156,-16515.23735569,0.00018,2]
[394933131,1764160240167,-8053.16080681,0.00018,2]
[394933132,1764160240178,-18492.04635029,0.00018,2]
[394933133,1764160240189,-500.0,0.00018,2]
[394933134,1764160240223,-863819.17068094,0.00018,2]
[394933135,1764160240335,-1600.64908335,0.00018,2]
[394933136,1764160240348,-2072.05180528,0.00018,2]
[394933137,1764160240359,-2590.80063541,0.00018,2]
[394933138,1764160240370,-2713.07945722,0.00018,2]
[394933139,1764160240397,-564.11572434,0.00018,2]
[394933140,1764160240408,-10501.49337167,0.00018,2]
[394933141,1764160240419,-844.27,0.00018,2]
[394933142,1764160240430,-1372.25000002,0.00018,2]
[394933143,1764160240445,-2260.67063397,0.00018,2]
[394933144,1764160240468,-446.94398386,0.00018,2]
[394933145,1764160240479,-3441.90960667,0.00018,2]
[394933146,1764160240490,-4300.44064498,0.00018,2]
[394933147,1764160240580,-250496.62956897,0.00018,2]
[394933151,1764160241467,284.39227965,0.00042061,120]
[394933157,1764160243306,500.0,0.00042061,120]
[394933158,1764160243796,-38220.3747782,0.00018,2]
[394933159,1764160243909,-422.47117998,0.00018,2]
[394933160,1764160244676,-464.6538,0.00018,2]
[394933161,1764160244689,-3411.37260033,0.00018,2]
[394933162,1764160244701,-3681.900821,0.00018,2]
[394933163,1764160244730,-648.93851997,0.00018,2]
[394933164,1764160244742,-466.7936093,0.00018,2]
[394933165,1764160244753,-120077.76778928,0.00018,2]
[394933172,1764160246089,-474.4368,0.00018,2]
[394933173,1764160246255,-22382.0100429,0.00018,2]
[394933174,1764160246314,-4400.33003597,0.00018,2]
[394933175,1764160246373,-4361.77459862,0.00018,2]
[394933176,1764160246384,-103044.07471381,0.00018,2]
[394933177,1764160246395,-11533.12725657,0.00018,2]
[394933178,1764160246406,-2581.85240689,0.00018,2]
[394933179,1764160246417,-5768.56376551,0.00018,2]
[394933180,1764160246428,-794.30477733,0.00018,2]
[394933181,1764160246439,-556.81298057,0.00018,2]
[394933182,1764160246641,502.31521938,0.00042061,120]
[394933183,1764160250356,503.4637275,0.00042061,120]
[394933184,1764160253670,502.93801996,0.00042061,120]
[394933186,1764160747504,500.0,0.00042056,120]
[394933187,1764160747555,500.0,0.00042056,120]
[394933188,1764160748100,500.0,0.00042056,120]
[394933189,1764160748610,500.0,0.00042056,120]
[394933190,1764160748843,500.0,0.00042056,120]
[394933191,1764160749201,500.0,0.00042056,120]
[394933192,1764160749483,500.0,0.00042056,120]
[394933193,1764160749806,500.0,0.00042056,120]
[394933194,1764160750285,500.0,0.00042056,120]
[394933195,1764160750416,500.0,0.00042056,120]
[394933196,1764160750676,500.0,0.00042056,120]
[394933197,1764160751134,500.0,0.00042056,120]
[394933198,1764160751299,500.0,0.00042056,120]
[394933199,1764160751796,500.0,0.00042056,120]
[394933200,1764160752015,500.0,0.00042056,120]
[394933201,1764160752417,500.0,0.00042056,120]
[394933202,1764160752459,500.0,0.00042056,120]
[394933203,1764160752520,325.91044977,0.00042056,120]
[394933204,1764160752624,500.0,0.00042056,120]
[394933205,1764160753113,500.0,0.00042056,120]
[394933206,1764160753154,500.0,0.00042056,120]
[394933207,1764160753225,500.0,0.00042056,120]
[394933208,1764160753678,500.0,0.00042056,120]
[394933209,1764160753722,500.0,0.00042056,120]
[394933210,1764160753838,500.0,0.00042056,120]
[394933211,1764160754291,500.0,0.00042056,120]
[394933212,1764160754336,500.0,0.00042056,120]
[394933213,1764160754909,500.0,0.00042056,120]
[394933214,1764160755529,500.0,0.00042056,120]
[394933215,1764160756131,500.0,0.00042056,120]
[394933216,1764160756756,500.0,0.00042056,120]
[394933217,1764160757457,500.0,0.00042056,120]
[394933218,1764160758056,500.0,0.00042056,120]
[394933219,1764160758675,500.0,0.00042056,120]
[394933221,1764160888730,516.03,0.00042056,120]
[394933222,1764160888919,516.03,0.00042056,120]
[394933223,1764160889168,516.03,0.00042056,120]
[394933224,1764160889408,516.03,0.00042056,120]
[394933225,1764160889648,516.03,0.00042056,120]
[394933226,1764160889888,516.03,0.00042056,120]
[394933227,1764160890147,516.03,0.00042056,120]
[394933228,1764160890412,516.03,0.00042056,120]
[394933229,1764160890659,516.03,0.00042056,120]
[394933230,1764160890907,516.03,0.00042056,120]
[394933231,1764160891151,516.03,0.00042056,120]
[394933232,1764160891393,516.03,0.00042056,120]
[394933233,1764160891691,516.03,0.00042056,120]
[394933234,1764160891966,516.03,0.00042056,120]
[394933235,1764160892223,516.03,0.00042056,120]
[394933236,1764160892459,516.03,0.00042056,120]
[394933237,1764160892700,516.03,0.00042056,120]
[394933238,1764160892949,516.03,0.00042056,120]
[394933239,1764160893225,516.03,0.00042056,120]
[394933240,1764160893533,516.03,0.00042056,120]
[394933241,1764160893807,516.03,0.00042056,120]
[394933242,1764160894066,516.03,0.00042056,120]
[394933243,1764160894300,516.03,0.00042056,120]
[394933244,1764160894543,516.23,0.00042056,120]
[394933245,1764160928222,630.24349014,0.00042056,120]
[394933246,1764160935804,505.8576371,0.00042056,120]
[394933247,1764161130188,-158.46950603,0.000162,2]
[394933248,1764161130213,-247.8255487,0.000162,2]
[394933249,1764161130237,-194.97414201,0.000162,2]
[394933250,1764161130261,-186.35725528,0.000162,2]
[394933251,1764161130284,-300.0,0.00017958,2]
[394933252,1764161130307,-300.0,0.00017958,2]
[394933253,1764161130331,-112.37354798,0.00017958,2]
[394933254,1764161144083,-1369.70299539,0.00017882,2]
[394933255,1764161144108,-1087.62645202,0.00017958,2]
[394933256,1764161144130,-1200.0,0.00017959,2]
[394933257,1764161144164,-550.0,0.00017959,2]
[394933258,1764161144191,-300.0,0.00017959,2]
[394933259,1764161144214,-500.0,0.0001796,2]
[394933260,1764161144237,-500.0,0.0001796,2]
[394933261,1764161144259,-500.0,0.0001796,2]
[394933262,1764161144286,-503.06048303,0.0001796,2]
[394933263,1764161144310,-500.0,0.0001796,2]
[394933264,1764161144334,-500.0,0.0001796,2]
[394933265,1764161144358,-215.63161151,0.0001796,2]
[394933266,1764161144386,-500.0,0.0001796,2]
[394933267,1764161144410,-223.84292275,0.0001796,2]
[394933268,1764161144432,-499.9066697,0.0001796,2]
[394933269,1764161144456,-500.0,0.0001796,2]
[394933270,1764161144479,-193.109424,0.0001796,2]
[394933271,1764161144507,-500.0,0.0001796,2]
[394933272,1764161144530,-417.3404738,0.0001796,2]
[394933273,1764161144557,-500.0,0.0001796,2]
[394933274,1764161144583,-500.0,0.0001796,2]
[394933275,1764161144610,-500.0,0.0001796,2]
[394933276,1764161144637,-500.0,0.0001796,2]
[394933277,1764161144664,-416.70925877,0.0001796,2]
[394933278,1764161144692,-500.0,0.0001796,2]
[394933279,1764161144718,-500.0,0.0001796,2]
[394933280,1764161144744,-500.0,0.0001796,2]
[394933281,1764161144770,-500.0,0.0001796,2]
[394933282,1764161144797,-500.0,0.0001796,2]
[394933283,1764161144824,-500.0,0.0001796,2]
[394933284,1764161144855,-500.0,0.0001796,2]
[394933285,1764161144883,-500.0,0.0001796,2]
[394933286,1764161144909,-500.0,0.0001796,2]
[394933287,1764161144935,-500.0,0.0001796,2]
[394933288,1764161144961,-500.0,0.0001796,2]
[394933289,1764161144989,-500.0,0.0001796,2]
[394933290,1764161145016,-23.06970903,0.0001796,2]
[394933291,1764161152933,-150.0,0.000162,2]
[394933292,1764161152954,-284.26394135,0.000162,2]
[394933293,1764161152976,-1369.70299537,0.00017906,2]
[394933294,1764161152998,-1369.70299537,0.00017931,2]
[394933295,1764161153024,-476.93029097,0.0001796,2]
[394933296,1764161153050,-500.0,0.0001796,2]
[394933297,1764161153077,-500.0,0.0001796,2]
[394933298,1764161153282,-500.0,0.0001796,2]
[394933299,1764161153315,-500.0,0.0001796,2]
[394933300,1764161153342,-500.0,0.0001796,2]
[394933301,1764161153368,-500.0,0.0001796,2]
[394933302,1764161153395,-500.0,0.0001796,2]
[394933303,1764161153421,-500.0,0.0001796,2]
[394933304,1764161153448,-500.0,0.0001796,2]
[394933305,1764161153475,-500.0,0.0001796,2]
[394933306,1764161153502,-500.0,0.0001796,2]
[394933307,1764161153530,-500.0,0.0001796,2]
[394933308,1764161153560,-500.0,0.0001796,2]
[394933309,1764161153584,-4849.39977694,0.00017961,2]
[394933310,1764161154760,-3873.78430756,0.00017961,2]
[394933311,1764161154784,-7615.0959235,0.00017961,2]
[394933312,1764161154813,-3511.11976894,0.00017961,2]
[394933313,1764161406867,157.208211,0.00042058,50]
[394933319,1764161432999,-0.68539376,0.00017804,2]
[394933327,1764161438251,-338.32727214,0.00017804,2]
[394933328,1764161438260,-300.0,0.00017903,2]
[394933329,1764161438271,-957.29597742,0.00017903,2]
[394933330,1764161438415,-242.70402258,0.00017903,2]
[394933331,1764161438425,-1056.19097742,0.00017904,2]
[394933378,1764161440341,-12221.45052943,0.00017904,2]
[394933379,1764161440352,-277.45480285,0.00017904,2]
[394933380,1764161440365,-244.0,0.00017904,2]
[394933381,1764161440374,-164.53491855,0.00017904,2]
[394933382,1764161440384,-534.27439844,0.00017904,2]
[394933383,1764161440503,-807.57496027,0.00017904,2]
[394933384,1764161440512,-775.49300798,0.00017955,2]
[394933385,1764161440527,-594.20998739,0.00017955,2]
[394933386,1764161440537,-809.0,0.0001796,2]
[394933387,1764161440546,-550.0,0.0001796,2]
[394933388,1764161440555,-3317.76572691,0.00017961,2]
[394933389,1764161440566,-4100.48445789,0.00017961,2]
[394933393,1764161440853,-2751.00820496,0.00017961,2]
[394933402,1764161444242,-3595.02392,0.00017961,2]
[394933403,1764161444305,-5994.62629436,0.00017961,2]
[394933422,1764161446600,-2015.49496416,0.00017961,2]
[394933423,1764161446611,-611.68963455,0.00017961,2]
[394933424,1764161446625,-776.0788,0.00017961,2]
[394933425,1764161446636,-504.14939298,0.00017961,2]
[394933426,1764161446649,-69713.56387455,0.00017961,2]
[394933427,1764161446658,-1220.0035726,0.00017961,2]
[394933428,1764161446668,-52504.0,0.00017973,2]
[394933429,1764161446677,-1369.70299537,0.00017979,2]
[394933430,1764161446686,-961.01548592,0.00017982,2]
[394933431,1764161446695,-151.0,0.00017989,2]